fUST/lending_fUST_20240528
["ID","MTS","AMOUNT","RATE_DAILY","PERIOD"]
[328082425,1716840633871,-1263.68051748,0.00019993,2]
[328082427,1716840633880,-500.0,0.00019993,2]
[328082428,1716840633889,-1263.68051748,0.00019993,2]
[328082430,1716840633899,-500.0,0.00019993,2]
[328082432,1716840633908,-1263.68051748,0.00019993,2]
[328082434,1716840633918,-500.0,0.00019993,2]
[328082437,1716840633927,-1263.68051748,0.00019993,2]
[328082439,1716840633936,-500.0,0.00019993,2]
[328082441,1716840633946,-1263.68051748,0.00019993,2]
[328082442,1716840633955,-1263.68051748,0.00019993,2]
[328082444,1716840633964,-1263.68051748,0.00019993,2]
[328082446,1716840633973,-1263.68051748,0.00019993,2]
[328082448,1716840633983,-500.0,0.00019993,2]
[328082450,1716840633994,-1263.68051748,0.00019993,2]
[328082452,1716840634004,-500.0,0.00019993,2]
[328082454,1716840634013,-1263.68051748,0.00019993,2]
[328082456,1716840634022,-500.0,0.00019993,2]
[328082458,1716840634032,-1263.68051748,0.00019993,2]
[328082460,1716840634041,-1263.68051748,0.00019993,2]
[328082462,1716840634051,-500.0,0.00019993,2]
[328082464,1716840634060,-1263.68051748,0.00019993,2]
[328082466,1716840634070,-500.0,0.00019993,2]
[328082468,1716840634080,-9016.13187572,0.00019995,2]
[328082470,1716840634089,-447.81306645,0.00019997,2]
[328082472,1716840634099,-2899.46708868,0.00019997,2]
[328082474,1716840634109,-5077.06988925,0.00019997,2]
[328082476,1716840634118,-286.08141606,0.00019997,2]
[328082478,1716840634127,-623.76652108,0.00019998,2]
[328082480,1716840634137,-9104.23424603,0.00019998,2]
[328082482,1716840634147,-98894.03640609,0.0002,2]
[328082484,1716840634156,-527.82833493,0.0002,4]
[328082486,1716840634166,-466.77736461,0.0002,2]
[328082488,1716840634175,-279.1103904,0.0002,2]
[328082490,1716840634185,-12344.02599904,0.0002,2]
[328082492,1716840634194,-400.0,0.0002,2]
[328082494,1716840634204,-259.61321772,0.0002,2]
[328082496,1716840634213,-1352.0716296,0.0002,2]
[328082498,1716840634222,-181.11191058,0.0002,2]
[328082500,1716840634232,-190.81856612,0.0002,2]
[328082502,1716840634244,-151.99986026,0.000208,2]
[328082504,1716840634253,-151.99986026,0.000208,2]
[328082506,1716840634263,-197.47401387,0.0002091,2]
[328082508,1716840634272,-527.79545336,0.0002091,2]
[328082510,1716840634281,-309.64391027,0.0002091,2]
[328082512,1716840634290,-156.53311596,0.0002091,2]
[328082514,1716840634300,-770.39170798,0.0002091,2]
[328082516,1716840634309,-297.63092044,0.0002091,2]
[328082518,1716840634319,-155.02628739,0.0002091,2]
[328082520,1716840634328,-310.52674779,0.0002091,2]
[328082522,1716840634338,-3000.0,0.00020911,2]
[328082524,1716840634347,-3000.0,0.00020911,2]
[328082526,1716840634356,-155.05784387,0.00020912,2]
[328082527,1716840634366,-156.09000191,0.00020912,2]
[328082529,1716840634375,-319.06966249,0.00020912,2]
[328082531,1716840634385,-309.64391027,0.00020912,2]
[328082533,1716840634395,-309.65937778,0.00020912,2]
[328082535,1716840634405,-232.06148603,0.00020912,2]
[328082536,1716840634414,-2031.9,0.00020912,2]
[328082537,1716840634423,-1151.84012163,0.00020912,2]
[328082538,1716840634433,-312.23635376,0.00020912,2]
[328082539,1716840634442,-189.54540557,0.00020912,2]
[328082540,1716840634451,-154.92253873,0.00020912,2]
[328082541,1716840634461,-194.346415,0.00020912,2]
[328082542,1716840634471,-175.32815383,0.00020912,2]
[328082543,1716840634480,-181.49361007,0.00020912,2]
[328082544,1716840634490,-5553.9884539,0.00020912,2]
[328082545,1716840634501,-6229.35298755,0.00020912,2]
[328082546,1716840634510,-1495.85240502,0.00020912,2]
[328082547,1716840634519,-2591.61103843,0.00020912,2]
[328082548,1716840634528,-672.0177029,0.00020912,2]
[328082549,1716840634540,-835.13669849,0.00020912,2]
[328082550,1716840634550,-289.01458874,0.00020912,2]
[328082551,1716840634560,-309.62731609,0.00020912,2]
[328082552,1716840634569,-155.0418613,0.00020912,2]
[328082553,1716840634578,-1907.6585678,0.00020912,2]
[328082554,1716840634590,-1028.36948709,0.00020912,2]
[328082555,1716840634599,-7420.7501235,0.00020912,2]
[328082556,1716840634608,-474.82276577,0.00020912,2]
[328082557,1716840634620,-155.08099165,0.00020912,2]
[328082558,1716840634629,-295.03397887,0.00020912,2]
[328082559,1716840634639,-156.42621408,0.00020912,2]
[328082560,1716840634648,-309.79736396,0.00020912,2]
[328082561,1716840634658,-194.93007607,0.00020912,2]
[328082562,1716840634667,-1402.22943905,0.00020912,2]
[328082563,1716840634677,-1017.55041812,0.00020912,2]
[328082564,1716840634686,-4101.73495053,0.00020913,2]
[328082565,1716840634695,-309.76767502,0.00020913,2]
[328082566,1716840634705,-2068.40746442,0.00021,2]
[328082567,1716840634715,-151.0,0.00021683,3]
[328082568,1716840634725,-10000.0,0.00021918,2]
[328082569,1716840634734,-166.666666,0.00021918,2]
[328082570,1716840634744,-171.31904626,0.00022,2]
[328082571,1716840634753,-151.0,0.00022377,3]
[328082572,1716840634762,-166.666666,0.00022431,2]
[328082573,1716840634771,-291.70593533,0.000225,2]
[328082574,1716840634781,-166.666666,0.00022944,2]
[328082575,1716840634790,-529.52362204,0.00023,2]
[328082576,1716840634800,-389.0,0.00023,2]
[328082577,1716840634811,-500.0,0.00023287,2]
[328082578,1716840634820,-389.0,0.00023288,2]
[328082579,1716840634829,-166.666666,0.00023456,2]
[328082580,1716840634839,-629.47514074,0.0002352,2]
[328082581,1716840634848,-3849.41641393,0.000239,2]
[328082582,1716840634857,-166.666666,0.00023969,2]
[328082583,1716840634867,-187.36839021,0.00024,2]
[328082584,1716840634876,-389.0,0.00024164,2]
[328082585,1716840634886,-645.350127,0.00024384,2]
[328082586,1716840634895,-166.666666,0.00024482,2]
[328082587,1716840634904,-620.47375704,0.00024696,2]
[328082588,1716840634914,-1114.62137935,0.00024866,2]
[328082589,1716840634923,-417.94896901,0.00025,2]
[328082590,1716840634935,-22868.14095646,0.00025,2]
[328082591,1716840634944,-248.47204879,0.00025,2]
[328082592,1716840634953,-395.0,0.00025373,2]
[328082593,1716840634962,-620.02368785,0.00025931,2]
[328082594,1716840634976,-313.15449512,0.00026037,2]
[328082595,1716840634985,-294.61019283,0.00026051,2]
[328082596,1716840634995,-294.61019283,0.00026072,2]
[328082597,1716840635005,-769.15667069,0.00026081,2]
[328082598,1716840635014,-313.15449512,0.00026103,2]
[328082599,1716840635024,-294.61019283,0.00026111,2]
[328082600,1716840635033,-313.15449512,0.00026251,2]
[328082601,1716840635043,-313.15449512,0.00026284,2]
[328082602,1716840635053,-313.15449512,0.00026354,2]
[328082603,1716840635063,-294.61019283,0.00026417,2]
[328082604,1716840635072,-313.15449512,0.00026435,2]
[328082605,1716840635081,-313.15449512,0.00026478,2]
[328082606,1716840635090,-769.15667069,0.0002648,2]
[328082607,1716840635099,-156.866,0.00026498,2]
[328082608,1716840635108,-151.274,0.00026498,2]
[328082609,1716840635118,-497.0,0.00026498,2]
[328082610,1716840635127,-150.0,0.00026498,2]
[328082611,1716840635137,-313.15449512,0.00026546,2]
[328082612,1716840635147,-294.61019283,0.00026586,2]
[328082613,1716840635156,-294.61019283,0.00026629,2]
[328082614,1716840635166,-153.0,0.00026633,2]
[328082615,1716840635175,-294.61019283,0.00026667,2]
[328082616,1716840635185,-294.61019283,0.00026679,2]
[328082617,1716840635194,-769.15667069,0.0002673,2]
[328082618,1716840635204,-769.15667069,0.00026895,2]
[328082619,1716840635213,-769.15667069,0.00026902,2]
[328082620,1716840635223,-5787.82417952,0.00027,2]
[328082621,1716840635233,-389.0,0.00027064,2]
[328082622,1716840635244,-3530.82548116,0.00027147,2]
[328082623,1716840635253,-5801.58634263,0.00027197,2]
[328082624,1716840635262,-313.15449512,0.0002722,2]
[328082625,1716840635271,-620.00118439,0.00027227,2]
[328082626,1716840635280,-51108.10664991,0.00027297,3]
[328082627,1716840635290,-769.15667069,0.00027305,2]
[328082628,1716840635300,-294.61019283,0.00027307,2]
[328082629,1716840635310,-217.22777113,0.00027395,2]
[328082630,1716840635320,-567.6983453,0.00027395,2]
[328082631,1716840635330,-2636.83525359,0.00027395,2]
[328082632,1716840635339,-218.55518384,0.00027396,2]
[328082633,1716840635349,-500.0,0.00027397,4]
[328082634,1716840635359,-500.0,0.00027397,4]
[328082635,1716840635368,-500.0,0.00027397,4]
[328082636,1716840635377,-500.0,0.00027397,4]
[328082637,1716840635387,-500.0,0.00027397,4]
[328082638,1716840635396,-500.0,0.00027397,4]
[328082639,1716840635406,-500.0,0.00027397,4]
[328082640,1716840635416,-500.0,0.00027397,4]
[328082641,1716840635426,-500.0,0.00027397,4]
[328082642,1716840635435,-500.0,0.00027397,4]
[328082643,1716840635444,-570.07,0.00027397,4]
[328082644,1716840635453,-500.0,0.00027397,4]
[328082645,1716840635462,-500.0,0.00027397,4]
[328082646,1716840635472,-500.0,0.00027397,4]
[328082647,1716840635481,-541.74370716,0.00027397,4]
[328082648,1716840635490,-500.0,0.00027397,4]
[328082649,1716840635500,-504.2581853,0.00027397,4]
[328082650,1716840635509,-500.0,0.00027397,4]
[328082651,1716840635519,-500.0,0.00027397,4]
[328082652,1716840635528,-500.0,0.00027397,4]
[328082653,1716840635540,-584.4,0.00027397,2]
[328082654,1716840635550,-500.0,0.00027397,4]
[328082655,1716840635559,-500.0,0.00027397,4]
[328082656,1716840635569,-500.0,0.00027397,4]
[328082657,1716840635579,-500.0,0.00027397,4]
[328082658,1716840635589,-504.8129884,0.00027397,4]
[328082659,1716840635598,-151.0,0.00027397,2]
[328082660,1716840635608,-241.39656375,0.00027397,4]
[328082661,1716840635619,-500.0,0.00027397,4]
[328082662,1716840635629,-500.0,0.00027397,4]
[328082663,1716840635637,-487.32813622,0.00027397,4]
[328082664,1716840635647,-500.0,0.00027397,4]
[328082665,1716840635656,-500.0,0.00027397,4]
[328082666,1716840635666,-500.0,0.00027397,4]
[328082667,1716840635675,-500.0,0.00027397,4]
[328082668,1716840635684,-154.82968734,0.00027397,4]
[328082669,1716840635840,-506.27025973,0.00027397,4]
[328082670,1716840635881,-500.0,0.00027397,4]
[328082671,1716840635891,-500.0,0.00027397,4]
[328082672,1716840635900,-500.0,0.00027397,4]
[328082673,1716840635910,-500.0,0.00027397,4]
[328082674,1716840635920,-500.0,0.00027397,4]
[328082675,1716840635929,-500.0,0.00027397,4]
[328082676,1716840635939,-500.0,0.00027397,4]
[328082677,1716840635948,-500.0,0.00027397,4]
[328082678,1716840635957,-500.0,0.00027397,4]
[328082679,1716840635967,-500.0,0.00027397,4]
[328082680,1716840635976,-1515.15,0.00027397,4]
[328082681,1716840635986,-500.0,0.00027397,4]
[328082682,1716840635996,-500.0,0.00027397,4]
[328082683,1716840636006,-500.0,0.00027397,4]
[328082684,1716840636015,-500.0,0.00027397,4]
[328082685,1716840636025,-532.95,0.00027397,4]
[328082686,1716840636035,-500.0,0.00027397,4]
[328082687,1716840636044,-500.0,0.00027397,4]
[328082688,1716840636054,-341.5265,0.00027397,4]
[328082689,1716840636063,-500.0,0.00027397,4]
[328082690,1716840636073,-1212.45,0.00027397,4]
[328082691,1716840636084,-500.0,0.00027397,4]
[328082692,1716840636095,-500.0,0.00027397,4]
[328082693,1716840636105,-546.61,0.00027397,4]
[328082694,1716840636115,-500.0,0.00027397,4]
[328082695,1716840636124,-332.05120175,0.00027397,4]
[328082696,1716840636133,-573.12,0.00027397,4]
[328082697,1716840636143,-500.0,0.00027397,4]
[328082698,1716840636152,-500.0,0.00027397,4]
[328082699,1716840636162,-1814.44,0.00027397,4]
[328082700,1716840636171,-500.0,0.00027397,4]
[328082701,1716840636180,-500.0,0.00027397,4]
[328082702,1716840636190,-992.89,0.00027397,4]
[328082703,1716840636199,-500.0,0.00027397,4]
[328082704,1716840636209,-500.0,0.00027397,4]
[328082705,1716840636218,-500.0,0.00027397,4]
[328082706,1716840636228,-186.83361465,0.00027397,4]
[328082707,1716840636238,-500.0,0.00027397,4]
[328082708,1716840636251,-500.0,0.00027397,4]
[328082709,1716840636260,-500.0,0.00027397,4]
[328082710,1716840636269,-550.77,0.00027397,4]
[328082711,1716840636278,-500.0,0.00027397,4]
[328082712,1716840636287,-500.0,0.00027397,4]
[328082713,1716840636296,-500.0,0.00027397,4]
[328082714,1716840636305,-603.84653484,0.00027397,4]
[328082715,1716840636314,-500.0,0.00027397,4]
[328082716,1716840636323,-806.15,0.00027397,4]
[328082717,1716840636332,-564.27665472,0.00027397,4]
[328082718,1716840636342,-554.99,0.00027397,4]
[328082719,1716840636351,-300.0,0.00027397,4]
[328082720,1716840636362,-500.0,0.00027397,4]
[328082721,1716840636372,-500.0,0.00027397,4]
[328082722,1716840636380,-500.0,0.00027397,4]
[328082723,1716840636390,-1209.88,0.00027397,4]
[328082724,1716840636398,-1075.45,0.00027397,4]
[328082725,1716840636407,-500.83642056,0.00027397,4]
[328082726,1716840636417,-705.91,0.00027397,4]
[328082727,1716840636427,-519.25,0.00027397,4]
[328082728,1716840636436,-803.81,0.00027397,4]
[328082729,1716840636446,-500.0,0.00027397,4]
[328082730,1716840636456,-500.0,0.00027397,4]
[328082731,1716840636466,-1364.53,0.00027397,4]
[328082732,1716840636476,-500.0,0.00027397,4]
[328082733,1716840636486,-500.0,0.00027397,4]
[328082734,1716840636497,-511.20795978,0.00027397,4]
[328082735,1716840636507,-1522.64,0.00027397,4]
[328082736,1716840636516,-500.0,0.00027397,4]
[328082737,1716840636526,-729.56,0.00027397,4]
[328082738,1716840636538,-500.0,0.00027397,4]
[328082739,1716840636550,-500.0,0.00027397,4]
[328082740,1716840636559,-500.0,0.00027397,4]
[328082741,1716840636569,-500.0,0.00027397,4]
[328082742,1716840636579,-500.0,0.00027397,4]
[328082743,1716840636588,-500.0,0.00027397,4]
[328082744,1716840636598,-1416.7,0.00027397,4]
[328082745,1716840636608,-500.0,0.00027397,4]
[328082746,1716840636620,-500.0,0.00027397,4]
[328082747,1716840636631,-500.0,0.00027397,4]
[328082748,1716840636640,-500.0,0.00027397,4]
[328082749,1716840636651,-500.0,0.00027397,4]
[328082750,1716840636660,-500.0,0.00027397,4]
[328082751,1716840636670,-772.52826239,0.00027397,2]
[328082752,1716840636680,-500.0,0.00027397,2]
[328082753,1716840636689,-500.0,0.00027397,4]
[328082754,1716840636699,-970.82,0.00027397,4]
[328082755,1716840636709,-500.0,0.00027397,4]
[328082756,1716840636718,-595.47,0.00027397,4]
[328082757,1716840636728,-1422.92,0.00027397,4]
[328082758,1716840636737,-500.0,0.00027397,4]
[328082759,1716840636747,-500.0,0.00027397,4]
[328082760,1716840636756,-500.0,0.00027397,4]
[328082761,1716840636766,-500.0,0.00027397,4]
[328082762,1716840636775,-500.0,0.00027397,4]
[328082763,1716840636784,-500.0,0.00027397,4]
[328082764,1716840636793,-500.0,0.00027397,4]
[328082765,1716840636803,-1010.74,0.00027397,4]
[328082766,1716840636812,-500.0,0.00027397,4]
[328082767,1716840636822,-500.0,0.00027397,4]
[328082768,1716840636831,-500.0,0.00027397,4]
[328082769,1716840636841,-500.0,0.00027397,4]
[328082770,1716840636850,-500.0,0.00027397,4]
[328082771,1716840636860,-500.0,0.00027397,4]
[328082772,1716840636869,-500.0,0.00027397,4]
[328082773,1716840636879,-500.0,0.00027397,4]
[328082774,1716840636888,-500.0,0.00027397,4]
[328082775,1716840636898,-500.0,0.00027397,4]
[328082776,1716840636907,-500.0,0.00027397,4]
[328082777,1716840636916,-500.0,0.00027397,4]
[328082778,1716840636926,-416.06495775,0.00027397,4]
[328082779,1716840636936,-500.0,0.00027397,4]
[328082780,1716840636946,-500.0,0.00027397,4]
[328082781,1716840636955,-500.0,0.00027397,4]
[328082782,1716840636965,-500.0,0.00027397,4]
[328082783,1716840636975,-177.30182763,0.00027397,4]
[328082784,1716840636993,-322.69817237,0.00027397,4]
[328082785,1716840637003,-500.0,0.00027397,4]
[328082786,1716840637013,-500.0,0.00027397,4]
[328082787,1716840637022,-500.0,0.00027397,4]
[328082788,1716840637031,-151.0,0.00027397,2]
[328082789,1716840637041,-389.58849283,0.00027397,4]
[328082790,1716840637051,-500.0,0.00027397,4]
[328082791,1716840637060,-500.0,0.00027397,4]
[328082792,1716840637069,-515.72519563,0.00027397,4]
[328082793,1716840637079,-381.93667857,0.00027397,4]
[328082897,1716840639385,-1263.68051748,0.00019993,2]
[328082899,1716840639395,-500.0,0.00019993,2]
[328082901,1716840639404,-1263.68051748,0.00019993,2]
[328082903,1716840639414,-1263.68051748,0.00019993,2]
[328082905,1716840639423,-1263.68051748,0.00019993,2]
[328082907,1716840639432,-500.0,0.00019993,2]
[328082909,1716840639442,-1263.68051748,0.00019993,2]
[328082911,1716840639452,-1263.68051748,0.00019993,2]
[328082913,1716840639461,-500.0,0.00019993,2]
[328082915,1716840639471,-1263.68051748,0.00019993,2]
[328082917,1716840639480,-1263.68051748,0.00019993,2]
[328082919,1716840639490,-1263.68051748,0.00019993,2]
[328082921,1716840639500,-622.70714278,0.00019993,2]
[328082923,1716840639510,-1263.68051748,0.00019993,2]
[328082925,1716840639519,-500.0,0.00019993,2]
[328082927,1716840639527,-1263.68051748,0.00019993,2]
[328082929,1716840639538,-1263.68051748,0.00019993,2]
[328082931,1716840639551,-500.0,0.00019993,2]
[328082933,1716840639560,-1263.68051748,0.00019993,2]
[328082935,1716840639570,-500.0,0.00019993,2]
[328082937,1716840639578,-1263.68051748,0.00019993,2]
[328082939,1716840639590,-1263.68051748,0.00019993,2]
[328082941,1716840639600,-1263.68051748,0.00019993,2]
[328082943,1716840639609,-1263.68051748,0.00019993,2]
[328082945,1716840639620,-500.0,0.00019993,2]
[328082947,1716840639629,-1263.68051748,0.00019993,2]
[328082950,1716840639639,-1263.68051748,0.00019993,2]
[328082952,1716840639649,-1263.68051748,0.00019993,2]
[328082954,1716840639658,-1263.68051748,0.00019993,2]
[328082956,1716840639668,-1263.68051748,0.00019993,2]
[328082958,1716840639677,-1263.68051748,0.00019993,2]
[328082959,1716840639687,-1263.68051748,0.00019993,2]
[328082962,1716840639697,-1263.68051748,0.00019993,2]
[328082964,1716840639706,-1263.68051748,0.00019993,2]
[328082966,1716840639716,-1263.68051748,0.00019993,2]
[328082967,1716840639726,-1263.68051748,0.00019993,2]
[328082968,1716840639735,-118.06332143,0.00027397,4]
[328082969,1716840639745,-500.0,0.00027397,4]
[328082970,1716840639756,-500.0,0.00027397,4]
[328082971,1716840639766,-500.0,0.00027397,4]
[328082972,1716840639776,-500.0,0.00027397,4]
[328082973,1716840639785,-500.0,0.00027397,4]
[328082974,1716840639795,-500.0,0.00027397,4]
[328082975,1716840639805,-1491.36,0.00027397,4]
[328082976,1716840639815,-500.0,0.00027397,4]
[328082977,1716840639824,-500.0,0.00027397,4]
[328082978,1716840639834,-500.0,0.00027397,4]
[328082979,1716840639844,-500.0,0.00027397,4]
[328082980,1716840639853,-500.0,0.00027397,4]
[328082981,1716840639864,-500.0,0.00027397,4]
[328082982,1716840639874,-500.0,0.00027397,4]
[328082983,1716840639883,-500.0,0.00027397,4]
[328082984,1716840639893,-500.0,0.00027397,4]
[328082985,1716840639902,-500.0,0.00027397,4]
[328082986,1716840639911,-500.0,0.00027397,4]
[328082987,1716840639921,-500.0,0.00027397,4]
[328082989,1716840639931,-151.0,0.00027397,2]
[328082991,1716840639941,-500.0,0.00027397,4]
[328082993,1716840639950,-1922.6,0.00027397,4]
[328082995,1716840639959,-500.0,0.00027397,4]
[328082997,1716840639968,-2189.73,0.00027397,4]
[328082999,1716840639978,-500.0,0.00027397,4]
[328083000,1716840639987,-500.0,0.00027397,4]
[328083002,1716840639998,-500.0,0.00027397,4]
[328083004,1716840640008,-500.0,0.00027397,4]
[328083006,1716840640018,-500.53083041,0.00027397,4]
[328083008,1716840640027,-500.0,0.00027397,4]
[328083010,1716840640037,-518.63,0.00027397,4]
[328083012,1716840640047,-500.0,0.00027397,4]
[328083014,1716840640056,-519.3,0.00027397,4]
[328083016,1716840640066,-500.0,0.00027397,4]
[328083018,1716840640075,-621.56,0.00027397,4]
[328083020,1716840640084,-500.0,0.00027397,4]
[328083022,1716840640094,-500.0,0.00027397,4]
[328083024,1716840640103,-500.0,0.00027397,4]
[328083026,1716840640112,-697.33,0.00027397,4]
[328083028,1716840640122,-2024.03,0.00027397,4]
[328083030,1716840640131,-230.43923077,0.00027397,4]
[328083031,1716840640141,-500.0,0.00027397,4]
[328083033,1716840640150,-151.0,0.00027397,2]
[328083034,1716840640160,-513.0873256,0.00027397,4]
[328083035,1716840640170,-500.0,0.00027397,4]
[328083037,1716840640180,-500.0,0.00027397,4]
[328083039,1716840640189,-500.0,0.00027397,4]
[328083041,1716840640198,-9138.07,0.00027397,4]
[328083042,1716840640207,-500.0,0.00027397,4]
[328083044,1716840640216,-500.0,0.00027397,4]
[328083046,1716840640226,-500.0,0.00027397,4]
[328083048,1716840640235,-500.0,0.00027397,4]
[328083050,1716840640244,-500.0,0.00027397,4]
[328083051,1716840640257,-500.0,0.00027397,4]
[328083052,1716840640266,-500.0,0.00027397,4]
[328083053,1716840640276,-500.0,0.00027397,4]
[328083054,1716840640286,-500.0,0.00027397,4]
[328083055,1716840640295,-808.44,0.00027397,4]
[328083056,1716840640304,-500.0,0.00027397,4]
[328083057,1716840640313,-500.0,0.00027397,4]
[328083058,1716840640322,-500.0,0.00027397,4]
[328083059,1716840640331,-184.401325,0.00027397,2]
[328083060,1716840640340,-500.0,0.00027397,4]
[328083061,1716840640350,-500.0,0.00027397,4]
[328083062,1716840640359,-633.02,0.00027397,4]
[328083063,1716840640368,-500.0,0.00027397,4]
[328083064,1716840640377,-500.0,0.00027397,4]
[328083065,1716840640387,-516.49289952,0.00027397,4]
[328083066,1716840640396,-500.0,0.00027397,4]
[328083067,1716840640406,-151.0,0.00027397,2]
[328083068,1716840640415,-500.0,0.00027397,4]
[328083069,1716840640423,-151.0,0.00027397,2]
[328083070,1716840640432,-500.0,0.00027397,4]
[328083071,1716840640442,-500.0,0.00027397,4]
[328083072,1716840640451,-151.0,0.00027397,2]
[328083073,1716840640460,-615.98,0.00027397,4]
[328083074,1716840640469,-574.04,0.00027397,4]
[328083075,1716840640478,-500.0,0.00027397,4]
[328083076,1716840640487,-500.0,0.00027397,4]
[328083077,1716840640496,-500.0,0.00027397,4]
[328083078,1716840640507,-3477.75,0.00027397,4]
[328083079,1716840640517,-500.0,0.00027397,4]
[328083080,1716840640526,-644.17,0.00027397,4]
[328083081,1716840640536,-500.0,0.00027397,4]
[328083082,1716840640550,-500.0,0.00027397,4]
[328083083,1716840640559,-500.0,0.00027397,4]
[328083084,1716840640568,-500.0,0.00027397,4]
[328083085,1716840640577,-500.0,0.00027397,4]
[328083086,1716840640588,-500.0,0.00027397,4]
[328083087,1716840640597,-1440.31,0.00027397,4]
[328083088,1716840640607,-500.0,0.00027397,4]
[328083089,1716840640618,-505.93902633,0.00027397,4]
[328083090,1716840640628,-500.0,0.00027397,4]
[328083091,1716840640638,-500.0,0.00027397,4]
[328083092,1716840640647,-500.0,0.00027397,4]
[328083093,1716840640656,-1267.7,0.00027397,4]
[328083094,1716840640665,-1764.25,0.00027397,4]
[328083095,1716840640675,-500.0,0.00027397,4]
[328083096,1716840640684,-500.0,0.00027397,4]
[328083097,1716840640694,-1415.77,0.00027397,4]
[328083098,1716840640703,-500.0,0.00027397,4]
[328083099,1716840640713,-151.0,0.00027397,2]
[328083101,1716840640723,-500.0,0.00027397,4]
[328083102,1716840640732,-579.84,0.00027397,4]
[328083103,1716840640742,-500.0,0.00027397,4]
[328083104,1716840640753,-500.0,0.00027397,4]
[328083105,1716840640762,-6892.0,0.00027397,4]
[328083106,1716840640772,-223.38788,0.00027397,2]
[328083108,1716840640781,-500.0,0.00027397,4]
[328083109,1716840640791,-500.0,0.00027397,4]
[328083111,1716840640800,-500.0,0.00027397,4]
[328083112,1716840640809,-151.0,0.00027397,2]
[328083114,1716840640818,-223.38788,0.00027397,2]
[328083115,1716840640828,-791.62,0.00027397,4]
[328083116,1716840640837,-151.0,0.00027397,2]
[328083122,1716840641007,-3835.9,0.00027397,4]
[328083124,1716840641017,-546.61,0.00027397,4]
[328083125,1716840641026,-500.0,0.00027397,4]
[328083127,1716840641036,-500.0,0.00027397,4]
[328083128,1716840641046,-500.0,0.00027397,4]
[328083129,1716840641055,-500.0,0.00027397,4]
[328083130,1716840641065,-500.0,0.00027397,4]
[328083131,1716840641075,-500.0,0.00027397,4]
[328083132,1716840641085,-500.0,0.00027397,4]
[328083133,1716840641094,-527.48,0.00027397,4]
[328083134,1716840641104,-500.0,0.00027397,4]
[328083135,1716840641113,-500.0,0.00027397,4]
[328083136,1716840641126,-158.11944496,0.00027397,4]
[328083137,1716840641136,-500.0,0.00027397,4]
[328083138,1716840641146,-2611.39,0.00027397,4]
[328083139,1716840641156,-500.0,0.00027397,4]
[328083140,1716840641166,-508.72,0.00027397,4]
[328083141,1716840641176,-228.81451,0.00027397,2]
[328083142,1716840641186,-1000.0,0.00027397,4]
[328083143,1716840641195,-500.0,0.00027397,4]
[328083144,1716840641204,-500.0,0.00027397,4]
[328083145,1716840641213,-546.42,0.00027397,4]
[328083146,1716840641222,-583.45494298,0.00027397,4]
[328083147,1716840641232,-500.0,0.00027397,4]
[328083148,1716840641240,-500.0,0.00027397,4]
[328083149,1716840641251,-500.0,0.00027397,4]
[328083150,1716840641260,-1124.12,0.00027397,4]
[328083151,1716840641269,-588.86007862,0.00027397,4]
[328083152,1716840641278,-652.09,0.00027397,4]
[328083153,1716840641287,-500.0,0.00027397,4]
[328083154,1716840641296,-500.0,0.00027397,4]
[328083155,1716840641305,-151.0,0.00027397,2]
[328083156,1716840641314,-500.0,0.00027397,4]